Department Family,Date Paid,Expense Type,Expense Area,Supplier,Transaction Number,Amount,Vat Inclusive
Crown Prosecution Service ,04/08/2020,Apprenticeship Levy payments Permanent,Other Corporate Admin Payments,HM Revenue and Customs,948PB000021422104,"6,108.54",
Crown Prosecution Service ,04/08/2020,Monthly Payroll Settlement,Balance Sheet,HM Revenue and Customs,948PB000021422104,"6,782,007.53",
Crown Prosecution Service ,04/08/2020,Apprenticeship Levy payments Permanent,Other Corporate Programme Payments,HM Revenue and Customs,948PB000021422104,"95,700.46",
Crown Prosecution Service ,04/08/2020,Professional subscriptions and memberships,Operational Change,Crimeline Training Ltd Wigan,INV-10288,"34,682.17",Y
Crown Prosecution Service ,04/08/2020,IT non capital software licences,Legal Reference and ICT Licenses,Egress Sotware Technologies Ltd London,INVUK18503,"405,000.00",Y
Crown Prosecution Service ,04/08/2020,Crown Court Graduated Fee Scheme,East Midlands Complex Casework Unit,Seven Bedford Row,orchard 231,"34,806.12",Y
Crown Prosecution Service ,04/08/2020,Recoverable VAT control,Balance Sheet,CDW Limited London,PSINV02821024,"51,142.97",Y
Crown Prosecution Service ,04/08/2020,IT non capital software licences,Legal Reference and ICT Licenses,CDW Limited London,PSINV02821024,"255,714.84",
Crown Prosecution Service ,04/08/2020,IT services,IT Compass Contract,Vodafone Ltd formerly Cable and Wireless Milton Keynes,UK10/072020/2838,"63,979.80",Y
Crown Prosecution Service ,05/08/2020,External Training,Leadership and Management Development,KPMG LLP London,5502122788,"29,035.00",
Crown Prosecution Service ,05/08/2020,Recoverable VAT control,Balance Sheet,KPMG LLP London,5502122788,"5,807.00",Y
Crown Prosecution Service ,06/08/2020,Crown Court Graduated Fee Scheme,South West Crown Court: North,Guildhall Chambers Bristol,184683CQ,"29,868.97",Y
Crown Prosecution Service ,06/08/2020,Crown Court Very High Cost Cases Full Scheme,Organised Crime North,Lincoln House Chambers,234999 MA 5,"28,556.20",Y
Crown Prosecution Service ,06/08/2020,External Training,Leadership and Management Development,KPMG LLP London,5502102256,"29,035.00",
Crown Prosecution Service ,06/08/2020,Recoverable VAT control,Balance Sheet,KPMG LLP London,5502102256,"5,807.00",Y
Crown Prosecution Service ,06/08/2020,Recoverable VAT control,Balance Sheet,KPMG LLP London,5502108582,"4,630.00",Y
Crown Prosecution Service ,06/08/2020,External Training,Leadership and Management Development,KPMG LLP London,5502108582,"23,150.00",
Crown Prosecution Service ,06/08/2020,Recoverable VAT control,Balance Sheet,KPMG LLP London,5502121884,"5,807.00",Y
Crown Prosecution Service ,06/08/2020,External Training,Leadership and Management Development,KPMG LLP London,5502121884,"29,035.00",
Crown Prosecution Service ,06/08/2020,Miscellaneous receipts suspense,Balance Sheet,Government Legal Department,Z1910105-R2 rekey,"35,000.00",
Crown Prosecution Service ,07/08/2020,Crown Court Graduated Fee Scheme,Cymru Wales South East Crown Court,30 Park Place Chambers,618752-1/CR,"30,627.70",Y
Crown Prosecution Service ,10/08/2020,IT non capital software licences,Legal Reference and ICT Licenses,Oracle Corporation UK Ltd,1758506,"157,252.25",
Crown Prosecution Service ,10/08/2020,Recoverable VAT control,Balance Sheet,Oracle Corporation UK Ltd,1758506,"31,450.46",Y
Crown Prosecution Service ,10/08/2020,External legal advice - Civil litigation,Other Corporate Programme Payments,Government Legal Department,481985,"36,948.24",Y
Crown Prosecution Service ,10/08/2020,Crown Court Graduated Fee Scheme,West Midlands Complex Casework Unit,6 Kings Bench Walk- Chambers of D Fisher & D Perry,98619 Streete,"38,442.07",Y
Crown Prosecution Service ,11/08/2020,Transcriptions and Translation,Other Corporate Programme Payments,Mendip Media Group Ltd Tiverton,159,"40,902.00",
Crown Prosecution Service ,11/08/2020,Recoverable VAT control,Balance Sheet,Mendip Media Group Ltd Tiverton,159,"8,180.40",Y
Crown Prosecution Service ,11/08/2020,Recoverable VAT control,Balance Sheet,AVR Transcription Ltd Bolton,34536-JUL20,"9,427.06",Y
Crown Prosecution Service ,11/08/2020,Transcriptions and Translation,Other Corporate Programme Payments,AVR Transcription Ltd Bolton,34536-JUL20,"47,135.31",
Crown Prosecution Service ,12/08/2020,IT services,PSN Connectivity Contract,Century Link,140104861/1009999,"153,946.00",
Crown Prosecution Service ,12/08/2020,Recoverable VAT control,Balance Sheet,Century Link,140104861/1009999,"30,789.20",Y
Crown Prosecution Service ,12/08/2020,Crown Court Graduated Fee Scheme,Special Crime Unit London,23 Essex Street Chambers,176537-EM,"28,486.19",Y
Crown Prosecution Service ,12/08/2020,Recoverable VAT control,Balance Sheet,HM Treasury,42865,"9,164.55",Y
Crown Prosecution Service ,12/08/2020,Shared services,Other Corporate Admin Payments,HM Treasury,42865,"45,822.75",
Crown Prosecution Service ,12/08/2020,Recoverable VAT control,Balance Sheet,CGI IT UK Ltd,GB014042728,"7,865.60",Y
Crown Prosecution Service ,12/08/2020,IT services,DTS Programme Project Cost,CGI IT UK Ltd,GB014042728,"39,328.00",
Crown Prosecution Service ,12/08/2020,Recoverable VAT control,Balance Sheet,CGI IT UK Ltd,GB014042730,"6,827.40",Y
Crown Prosecution Service ,12/08/2020,IT services,DTS Programme Project Cost,CGI IT UK Ltd,GB014042730,"34,137.00",
Crown Prosecution Service ,12/08/2020,Recoverable VAT control,Balance Sheet,CGI IT UK Ltd,GB014042732,"69,433.67",Y
Crown Prosecution Service ,12/08/2020,IT services,DTS Programme Project Cost,CGI IT UK Ltd,GB014042732,"347,170.38",
Crown Prosecution Service ,12/08/2020,Recoverable VAT control,Balance Sheet,CGI IT UK Ltd,GB014042739,"16,376.29",Y
Crown Prosecution Service ,12/08/2020,IT services,Service Desk Contract,CGI IT UK Ltd,GB014042739,"81,881.47",
Crown Prosecution Service ,12/08/2020,IT services,Apps and Hosting Contract,CGI IT UK Ltd,GB014042758,"82,868.87",
Crown Prosecution Service ,12/08/2020,Recoverable VAT control,Balance Sheet,CGI IT UK Ltd,GB014042758,"16,573.77",Y
Crown Prosecution Service ,12/08/2020,Recoverable VAT control,Balance Sheet,CGI IT UK Ltd,GB014042864,"9,351.20",Y
Crown Prosecution Service ,12/08/2020,IT services,DTS Programme Project Cost,CGI IT UK Ltd,GB014042864,"46,756.00",
Crown Prosecution Service ,12/08/2020,Recoverable VAT control,Balance Sheet,CGI IT UK Ltd,GB014042865,"54,554.63",Y
Crown Prosecution Service ,12/08/2020,IT services,DTS Programme Project Cost,CGI IT UK Ltd,GB014042865,"272,773.14",
Crown Prosecution Service ,12/08/2020,IT services,DTS Programme Project Cost,CGI IT UK Ltd,GB014042905,"33,241.62",Y
Crown Prosecution Service ,12/08/2020,IT services,IT Compass Contract,Vodafone Ltd formerly Cable and Wireless Milton Keynes,UK10/082020/5769,"36,360.02",Y
Crown Prosecution Service ,13/08/2020,IT non capital software licences,ERP Project: Programme,Oracle Corporation UK Ltd,1744569,"188,702.71",Y
Crown Prosecution Service ,13/08/2020,Crown Court Graduated Fee Scheme,Thames Chiltern Crown Court Unit,23 Essex Street Chambers,179247-IH,"36,669.72",Y
Crown Prosecution Service ,19/08/2020,General Professional Services,Strategy and Policy,PricewaterhouseCoopers,1355441852,"74,880.00",Y
Crown Prosecution Service ,19/08/2020,Crown Court Graduated Fee Scheme,Thames and Chiltern Complex Casework Unit,5 King's Bench Walk,167940 JP Re-Trial,"28,437.26",Y
Crown Prosecution Service ,19/08/2020,Crown Court Graduated Fee Scheme,London North Complex Casework Unit,6 Kings Bench Walk- Chambers of D Fisher & D Perry,98293 AMARE GP2,"39,009.76",Y
Crown Prosecution Service ,19/08/2020,Advice/PreSending Very High Cost Cases Full Scheme,Special Crime Unit London,3 Raymond Buildings,JAN/242486/3,"33,735.00",Y
Crown Prosecution Service ,19/08/2020,Crown Court Graduated Fee Scheme,Thames and Chiltern Complex Casework Unit,2 Hare Court Chambers -Chambers of Orlando Pownall,JL115477,"58,942.36",Y
Crown Prosecution Service ,20/08/2020,Recoverable VAT control,Balance Sheet,Century Link,140105252/1009802,"31,697.96",Y
Crown Prosecution Service ,20/08/2020,IT services,PSN Services Contract,Century Link,140105252/1009802,"158,489.82",
Crown Prosecution Service ,20/08/2020,Salary sacrifice suspense,Balance Sheet,Edenred,INV22356819,"43,657.45",
Crown Prosecution Service ,20/08/2020,Other Staff Costs,Finance Operations,Edenred,INV22356819,479.15,
Crown Prosecution Service ,21/08/2020,Operating lease rentals Property,Estate and FM: Programme,Police and Crime Commissioner for Sussex,1800046668,"61,113.64",
Crown Prosecution Service ,21/08/2020,IT services,DTS Programme Project Cost,WIPRO Holdings London,83026779,"28,962.00",Y
Crown Prosecution Service ,21/08/2020,Recoverable VAT control,Balance Sheet,CGI IT UK Ltd,GB014043124,"18,073.80",Y
Crown Prosecution Service ,21/08/2020,IT services,DTS Programme Project Cost,CGI IT UK Ltd,GB014043124,"90,369.00",
Crown Prosecution Service ,21/08/2020,Recoverable VAT control,Balance Sheet,CGI IT UK Ltd,GB014043126,"16,834.80",Y
Crown Prosecution Service ,21/08/2020,IT services,DTS Programme Project Cost,CGI IT UK Ltd,GB014043126,"84,174.00",
Crown Prosecution Service ,21/08/2020,IT services,DTS Programme Project Cost,CGI IT UK Ltd,GB014043291,"86,753.16",Y
Crown Prosecution Service ,24/08/2020,IT services,Apps and Hosting Contract,CGI IT UK Ltd,GB014043148,"564,054.52",
Crown Prosecution Service ,24/08/2020,Recoverable VAT control,Balance Sheet,CGI IT UK Ltd,GB014043148,"112,810.90",Y
Crown Prosecution Service ,25/08/2020,Recoverable VAT control,Balance Sheet,Trustmarque Solutions Ltd,2304248,"8,657.34",Y
Crown Prosecution Service ,25/08/2020,IT non capital software licences,Legal Reference and ICT Licenses,Trustmarque Solutions Ltd,2304248,"43,286.69",
Crown Prosecution Service ,25/08/2020,Operating lease rentals Property,Estate and FM: Administration,Government Property Agency London,3294,"194,402.05",
Crown Prosecution Service ,25/08/2020,Operating lease rentals Property,Estate and FM: Programme,Government Property Agency London,3294,"949,139.40",
Crown Prosecution Service ,25/08/2020,National non domestic rates,Estate and FM: Programme,Government Property Agency London,3294,"412,844.76",
Crown Prosecution Service ,25/08/2020,National non domestic rates,Estate and FM: Administration,Government Property Agency London,3294,"84,558.56",
Crown Prosecution Service ,25/08/2020,Landlord service charge,Estate and FM: Programme,Government Property Agency London,3294,"1,280,152.68",
Crown Prosecution Service ,25/08/2020,Landlord service charge,Estate and FM: Administration,Government Property Agency London,3294,"262,199.95",
Crown Prosecution Service ,25/08/2020,Other Staff Costs,Other Corporate Admin Payments,Reward Gateway (UK) Ltd,UK012950SI,"30,000.00",
Crown Prosecution Service ,26/08/2020,IT services,PSN Services Contract,Century Link,140832214/1010681,"56,100.44",Y
Crown Prosecution Service ,26/08/2020,Operating lease rentals Property,Estate and FM: Programme,Government Property Agency London,3307,"95,577.27",
Crown Prosecution Service ,26/08/2020,Landlord service charge,Estate and FM: Programme,Government Property Agency London,3307,"11,862.53",
Crown Prosecution Service ,26/08/2020,National non domestic rates,Estate and FM: Programme,Government Property Agency London,3307,"24,535.65",
Crown Prosecution Service ,26/08/2020,National non domestic rates,Estate and FM: Programme,Government Property Agency London,3319,"35,561.25",
Crown Prosecution Service ,26/08/2020,Operating lease rentals Property,Estate and FM: Programme,Government Property Agency London,3319,"80,407.80",
Crown Prosecution Service ,26/08/2020,Landlord service charge,Estate and FM: Programme,Government Property Agency London,3319,"15,463.32",
Crown Prosecution Service ,26/08/2020,IT services,DTS Programme Project Cost,WIPRO Holdings London,83023734,"42,525.96",Y
Crown Prosecution Service ,26/08/2020,IT services,DTS Programme Project Cost,WIPRO Holdings London,83026780,"158,760.00",Y
Crown Prosecution Service ,26/08/2020,IT services,DTS Programme Project Cost,WIPRO Holdings London,83026781,"51,584.40",Y
Crown Prosecution Service ,26/08/2020,IT services,DTS Programme Project Cost,WIPRO Holdings London,83026782,"44,046.00",Y
Crown Prosecution Service ,26/08/2020,IT services,DTS Programme Project Cost,CGI IT UK Ltd,GB014043466,"56,832.40",Y
Crown Prosecution Service ,27/08/2020,Crown Court Graduated Fee Scheme,Thames Chiltern Crown Court Unit,23 Essex Street Chambers,179052-MRO,"25,913.26",Y
Crown Prosecution Service ,27/08/2020,National non domestic rates,Estate and FM: Programme,Government Property Agency London,3287,"10,658.38",
Crown Prosecution Service ,27/08/2020,Landlord service charge,Estate and FM: Programme,Government Property Agency London,3287,"15,765.09",
Crown Prosecution Service ,27/08/2020,Operating lease rentals Property,Estate and FM: Programme,Government Property Agency London,3287,"35,778.15",
Crown Prosecution Service ,27/08/2020,Landlord service charge,Estate and FM: Programme,Government Property Agency London,3289,872.90,
Crown Prosecution Service ,27/08/2020,National non domestic rates,Estate and FM: Programme,Government Property Agency London,3289,"25,440.00",
Crown Prosecution Service ,27/08/2020,Operating lease rentals Property,Estate and FM: Programme,Government Property Agency London,3289,"66,875.00",
Crown Prosecution Service ,27/08/2020,National non domestic rates,Estate and FM: Administration,Government Property Agency London,3290,"5,301.88",
Crown Prosecution Service ,27/08/2020,Operating lease rentals Property,Estate and FM: Administration,Government Property Agency London,3290,"28,800.00",
Crown Prosecution Service ,27/08/2020,Operating lease rentals Property,Estate and FM: Programme,Government Property Agency London,3292,"26,640.00",
Crown Prosecution Service ,27/08/2020,Landlord service charge,Estate and FM: Programme,Government Property Agency London,3292,"13,876.41",
Crown Prosecution Service ,27/08/2020,National non domestic rates,Estate and FM: Programme,Government Property Agency London,3292,"9,280.00",
Crown Prosecution Service ,27/08/2020,National non domestic rates,Estate and FM: Programme,Government Property Agency London,3299,"6,299.88",
Crown Prosecution Service ,27/08/2020,Landlord service charge,Estate and FM: Programme,Government Property Agency London,3299,"7,500.00",
Crown Prosecution Service ,27/08/2020,Operating lease rentals Property,Estate and FM: Programme,Government Property Agency London,3299,"17,500.00",
Crown Prosecution Service ,27/08/2020,Operating lease rentals Property,Estate and FM: Programme,Government Property Agency London,3302,"55,500.00",
Crown Prosecution Service ,27/08/2020,Landlord service charge,Estate and FM: Programme,Government Property Agency London,3302,"22,132.14",
Crown Prosecution Service ,27/08/2020,National non domestic rates,Estate and FM: Programme,Government Property Agency London,3302,"18,209.71",
Crown Prosecution Service ,27/08/2020,National non domestic rates,Estate and FM: Programme,Government Property Agency London,3304,"25,472.00",
Crown Prosecution Service ,27/08/2020,Operating lease rentals Property,Estate and FM: Programme,Government Property Agency London,3304,"87,000.00",
Crown Prosecution Service ,27/08/2020,Landlord service charge,Estate and FM: Programme,Government Property Agency London,3306,"45,875.83",
Crown Prosecution Service ,27/08/2020,National non domestic rates,Estate and FM: Programme,Government Property Agency London,3306,"25,342.50",
Crown Prosecution Service ,27/08/2020,Operating lease rentals Property,Estate and FM: Programme,Government Property Agency London,3306,"57,402.60",
Crown Prosecution Service ,27/08/2020,Operating lease rentals Property,Estate and FM: Programme,Government Property Agency London,3308,"30,900.01",
Crown Prosecution Service ,27/08/2020,Operating lease rentals Property,Estate and FM: Programme,Government Property Agency London,3309,"39,900.00",
Crown Prosecution Service ,27/08/2020,National non domestic rates,Estate and FM: Programme,Government Property Agency London,3309,"16,893.80",
Crown Prosecution Service ,27/08/2020,Landlord service charge,Estate and FM: Programme,Government Property Agency London,3309,"2,763.58",
Crown Prosecution Service ,27/08/2020,Landlord service charge,Estate and FM: Programme,Government Property Agency London,3313,"21,710.47",
Crown Prosecution Service ,27/08/2020,National non domestic rates,Estate and FM: Programme,Government Property Agency London,3313,"15,744.00",
Crown Prosecution Service ,27/08/2020,Operating lease rentals Property,Estate and FM: Programme,Government Property Agency London,3313,"48,123.00",
Crown Prosecution Service ,27/08/2020,Landlord service charge,Estate and FM: Programme,Government Property Agency London,3318,"73,173.24",
Crown Prosecution Service ,27/08/2020,Operating lease rentals Property,Estate and FM: Programme,Government Property Agency London,3318,"244,327.50",
Crown Prosecution Service ,27/08/2020,National non domestic rates,Estate and FM: Programme,Government Property Agency London,3318,"67,336.10",
Crown Prosecution Service ,27/08/2020,Operating lease rentals Property,Estate and FM: Programme,Government Property Agency London,3320,"24,862.65",
Crown Prosecution Service ,27/08/2020,Landlord service charge,Estate and FM: Programme,Government Property Agency London,3320,"10,702.14",
Crown Prosecution Service ,27/08/2020,National non domestic rates,Estate and FM: Programme,Government Property Agency London,3321,"12,213.67",
Crown Prosecution Service ,27/08/2020,Operating lease rentals Property,Estate and FM: Programme,Government Property Agency London,3321,"35,137.35",
Crown Prosecution Service ,27/08/2020,Landlord service charge,Estate and FM: Programme,Government Property Agency London,3321,"14,367.06",
Crown Prosecution Service ,27/08/2020,National non domestic rates,Estate and FM: Programme,Government Property Agency London,3325,"29,727.50",
Crown Prosecution Service ,27/08/2020,Landlord service charge,Estate and FM: Programme,Government Property Agency London,3325,"25,750.34",
Crown Prosecution Service ,28/08/2020,IT Professional Services Design & Development Hardware & Software: Non Capital Purchases,DTS Programme Project Cost,ICS.AI Ltd Basingstoke,63,"33,896.40",Y
Crown Prosecution Service ,28/08/2020,IT Professional Services Design & Development Hardware & Software: Non Capital Purchases,DTS Programme Project Cost,ICS.AI Ltd Basingstoke,64,"31,376.40",Y
Crown Prosecution Service ,28/08/2020,IT services,End User Computing Contract,WIPRO Holdings London,83027368,"108,713.50",
Crown Prosecution Service ,28/08/2020,Recoverable VAT control,Balance Sheet,WIPRO Holdings London,83027368,"21,742.70",Y
Crown Prosecution Service ,28/08/2020,IT services,DTS Programme Project Cost,CGI IT UK Ltd,GB014043806,"446,416.13",
Crown Prosecution Service ,28/08/2020,Recoverable VAT control,Balance Sheet,CGI IT UK Ltd,GB014043806,"89,283.23",Y
Crown Prosecution Service ,28/08/2020,IT non capital equipment and consumables,DTS Programme Project Cost,ProBrand Birmingham,OP/I663471,"154,042.56",Y
